[Event "Romanian Superleague 2022"]
[Site "Oradea"]
[Date "2022.09.25"]
[Round "5.16"]
[White "Oprisor, Razvan-Gabriel"]
[Black "Gilea, Lucian"]
[Result "0-1"]
[ECO "B13"]
[WhiteElo "2175"]
[BlackElo "2278"]
[Annotator "TA"]
[PlyCount "104"]
[EventDate "2022.09.21"]
[EventType "team-tourn"]
[EventCountry "ROU"]
[SourceTitle "playchess.com"]
[Source "ChessBase"]
[SourceQuality "1"]
[TimeControl "40/5400+30:1800+30"]

{[%evp 17,104,38,38,31,29,27,27,24,32,32,46,40,51,40,64,53,52,34,33,22,14,-7,0,0,23,-16,-14,0,0,-43,-38,-51,-31,-29,-6,-53,0,0,0,-6,-11,-52,-50,-49,-36,-54,-43,-35,0,0,0,0,0,0,0,-20,-24,-74,-5,-68,-49,-86,-73,-67,-81,-138,-140,-217,-220,-222,-219,-224,-213,-475,-475,-1186,-1134,-1088,-1067,-954,-950,-1909,-1899,-1798,-1759,-1644,-1501,-991,-953]} 1. e4 {[%emt 0:00:22]} c6 {[%emt 0:00:06]} 2. d4 {[%emt 0:00:21]} d5 {[%emt 0:00:06]} 3. exd5 {[%emt 0:00:51]} cxd5 {[%emt 0:00:02]} 4. Bd3 {[%emt 0:00:13]} Nc6 {[%emt 0:00:19]} 5. c3 {[%emt 0:00:07]} g6 {[%emt 0:01:34]} 6. Nf3 {[%emt 0:05:11]} Bg7 {[%emt 0:00:12]} 7. O-O {[%emt 0:00:27]} Nh6 {[%emt 0:00:29]} 8. Re1 {[%emt 0:02:22]} O-O {[%emt 0:02:30]} 9. Bf4 {[%emt 0:07:44]} Bf5 {[%emt 0:05:19]} 10. Bxh6 {[%emt 0:09:02] B13: Caro-Kann: Exchange Variation and Panov-Botvinnik Attack.} Bxh6 {[%emt 0:00:41]} 11. Bxf5 {[%emt 0:00:09]} gxf5 {[%emt 0:00:03]} 12. Nbd2 {[%emt 0:01:08][%cal Bb1d2,Bd2b3,Bb3c1,Bc1d3][%mdl 32] White has an edge.} e6 {[%emt 0:01:30]} 13. Nb3 {[%emt 0:01:47]} b6 {[%emt 0:25:38]} 14. Nc1 {[%emt 0:03:35] [#]} Na5 $146 {[%emt 0:04:04][%cal Bc6a5,Ba5c4,Bc4d6,Bd6e4][%mdl 32]} ({Predecessor:} 14... Bxc1 15. Qxc1 Qf6 16. Qf4 Qg6 17. Re3 Kh8 18. Kh1 Rac8 19. h3 Rg8 20. Rg1 Qh5 {1-0 (29) Pospisil,L-Killar,M Czech Republic 1999}) 15. Nd3 {[%emt 0:05:50]} Nc4 {[%emt 0:02:33]} 16. Nfe5 {[%emt 0:02:31]} Nd6 {[%emt 0:04:05]} 17. Qh5 {[%emt 0:04:11]} Qg5 {[%emt 0:00:16]} 18. Qxg5+ {[%emt 0:07:41]} Bxg5 {[%emt 0:00:04][%cal Bh6g5,Bg5e7,Be7d6][%mdl 32]} 19. f4 {[%emt 0:01:43]} Be7 {[%emt 0:05:14]} 20. a4 {[%emt 0:12:45]} Ne4 {[%emt 0:01:32]} 21. Nf2 {[%emt 0:04:23]} (21. a5 $5 {[%cal Ra5b6]}) 21... Bd6 {[%emt 0:08:55]} 22. g3 {[%emt 0:01:29]} f6 {[%emt 0:02:25]} 23. Nxe4 {[%emt 0:03:24]} fxe4 {[%emt 0:00:36]} 24. Ng4 {[%emt 0:00:11][%cal Of4f5]} h5 {[%emt 0:06:35]} 25. Ne3 {[%emt 0:00:13]} h4 {[%emt 0:00:57]} 26. Kg2 {[%emt 0:08:00]} (26. c4 $11) 26... Kf7 {[%emt 0:01:21]} (26... f5 $15) 27. c4 $1 $11 {[%emt 0:02:33]} Rg8 {[%emt 0:03:41] White must now prevent ...hxg3.} 28. Kf2 {[%emt 0:02:04]} Bb4 {[%emt 0:01:06]} 29. Red1 {[%emt 0:02:11]} dxc4 {[%emt 0:01:04]} 30. Nxc4 {[%emt 0:00:07]} Rad8 {[%emt 0:03:22]} 31. Ne3 {[%emt 0:00:45]} hxg3+ {[%emt 0:02:08]} 32. hxg3 {[%emt 0:00:05]} Rd7 {[%emt 0:00:10]} 33. Rac1 $1 {[%emt 0:04:08]} Rh8 {[%emt 0:00:57] aiming for ...Rh2+.} 34. Kg2 {[%emt 0:00:21] Prevents Rh2+.} Rhd8 {[%emt 0:01:25]} 35. Rc4 {[%emt 0:00:06]} a5 {[%emt 0:00:14]} 36. b3 {[%emt 0:06:25]} f5 {[%emt 0:06:40]} 37. Nc2 {[%emt 0:02:14] [#]} (37. g4 $11 {remains equal.}) 37... Bf8 {[%emt 0:03:16]} ({Black should try} 37... Bc5 $1 $17) 38. Kf2 {[%emt 0:01:38]} ({White should play} 38. Ne3 $1 $11) 38... b5 $36 {[%emt 0:00:39][%mdl 2048] Black is more active.} (38... Bc5 $5) 39. axb5 {[%emt 0:00:05]} Rb8 {[%emt 0:00:01]} 40. Ra1 {[%emt 0:00:00]} Rxb5 {[%emt 0:00:00] Black is more active.} 41. Rc3 {[%emt 0:04:27] [#]} (41. g4 $142) 41... Rdb7 $1 $17 {[%emt 0:01:58]} 42. Na3 {[%emt 0:01:52]} (42. Ke2 $17 {was worth a try.}) 42... Rxb3 $19 {[%emt 0:04:03]} 43. Rxb3 {[%emt 0:00:08]} Rxb3 {[%emt 0:00:03][%mdl 4096] Endgame KRB-KRN} 44. Nc4 {[%emt 0:00:07]} Bb4 {[%emt 0:00:06] Strongly threatening ...Rf3+.} 45. Nxa5 $2 {[%emt 0:01:26]} (45. Ra2) 45... Rb2+ {[%emt 0:00:18] Black is clearly winning.} 46. Kf1 {[%emt 0:00:28] [#]} (46. Kg1 $142 Rc2 47. Nb3) 46... e3 $1 {[%emt 0:00:14] ( -> ...e2+)} 47. Nc4 {[%emt 0:01:02]} e2+ {[%emt 0:00:22]} 48. Kg1 {[%emt 0:00:06] [#]} Ra2 $3 {[%emt 0:00:16][%mdl 512]} 49. Ne5+ {[%emt 0:00:41]} (49. Rxa2 e1=Q+) 49... Ke8 {[%emt 0:01:57]} 50. Rxa2 {[%emt 0:00:08]} e1=Q+ {[%emt 0:00:05]} 51. Kg2 {[%emt 0:00:57]} Qe4+ {[%emt 0:00:17]} 52. Kh2 {[%emt 0:00:05]} Bc3 {[%emt 0:00:36] Weighted Error Value: White=0.39/Black=0.09 (flawless)} 0-1

[Event "Romanian Superleague 2022"]
[Site "Oradea"]
[Date "2022.09.25"]
[Round "5.17"]
[White "Ognean, Mihnea-Ionut"]
[Black "Ursente, Tudor-Alexandru"]
[Result "1-0"]
[ECO "B42"]
[WhiteElo "2303"]
[BlackElo "1931"]
[Annotator "TA"]
[PlyCount "67"]
[EventDate "2022.09.21"]
[EventType "team-tourn"]
[EventCountry "ROU"]
[SourceTitle "playchess.com"]
[Source "ChessBase"]
[SourceQuality "1"]
[TimeControl "40/5400+30:1800+30"]

{[%evp 14,67,44,39,39,43,83,89,63,70,66,56,91,71,99,110,123,135,243,208,435,220,227,202,210,198,295,128,136,133,122,134,160,91,145,145,141,145,125,141,171,160,167,106,245,205,206,192,467,453,329,451,435,409,534,472]} 1. e4 {[%emt 0:00:02]} c5 {[%emt 0:00:05]} 2. Nf3 {[%emt 0:00:13]} e6 {[%emt 0:00:04]} 3. d4 {[%emt 0:00:10]} cxd4 {[%emt 0:00:06]} 4. Nxd4 {[%emt 0:00:04]} a6 {[%emt 0:00:26]} 5. Bd3 {[%emt 0:01:07]} Qc7 {[%emt 0:02:09]} 6. O-O {[%emt 0:01:04]} Nf6 {[%emt 0:02:47]} 7. Qe2 {[%emt 0:00:37]} d6 {[%emt 0:00:36]} 8. f4 {[%emt 0:01:08]} Nc6 {[%emt 0:07:22] B42: Sicilian: Kan Variation: 5 Bd3.} 9. Nxc6 {[%emt 0:02:26]} Qxc6 {[%emt 0:00:23]} 10. c4 {[%emt 0:01:27]} Be7 {[%emt 0:06:50] White is better.} 11. Nc3 {[%emt 0:00:32]} O-O {[%emt 0:01:40]} 12. Kh1 {[%emt 0:04:00]} Bd7 {[%emt 0:07:26]} 13. Bd2 {[%emt 0:05:03]} Rad8 {[%emt 0:01:51] [#]} 14. Rf3 $146 {[%emt 0:03:50]} ({Predecessor:} 14. Rae1 Bc8 15. Rf3 Nd7 16. Nd5 Rde8 17. Nxe7+ Rxe7 18. e5 f5 19. Bb4 Nc5 20. exd6 Qxd6 {0-1 (51) Ivanenko,O (2013)-Polivoda,A Kharkov 2008}) 14... g6 {[%emt 0:12:15]} 15. Raf1 {[%emt 0:15:06]} Ne8 {[%emt 0:24:47]} (15... Qc5 $16) 16. Nd5 {[%emt 0:04:24]} Bh4 {[%emt 0:05:01] [#]} (16... exd5 17. exd5 Qc7) 17. Rh3 {[%emt 0:00:29]} (17. f5 $142) 17... exd5 $18 {[%emt 0:01:50]} 18. exd5 {[%emt 0:02:46]} ({Don't play} 18. Rxh4 $6 dxc4 19. Bxc4 d5 $16) 18... Qc8 {[%emt 0:02:54]} 19. Rxh4 {[%emt 0:00:05]} Bf5 {[%emt 0:00:05]} (19... Ng7 {was worth a try.} 20. Qe7 f6) 20. g4 {[%emt 0:02:18]} (20. Bxf5 $18 Qxf5 21. Bc3) 20... Bxd3 $16 {[%emt 0:00:05]} 21. Qxd3 {[%emt 0:00:07] [#] Threatens to win with f5.} f5 {[%emt 0:01:23]} 22. g5 {[%emt 0:02:44]} Ng7 {[%emt 0:00:08]} 23. Rh3 {[%emt 0:03:27]} (23. Bc3 $142 Rfe8 24. b3 (24. Bxg7 Kxg7 25. Qh3 h5 $16)) 23... Qd7 {[%emt 0:00:59]} (23... Rde8 $142) 24. Re1 $36 {[%emt 0:00:54][%mdl 2048] White is really pushing.} Rde8 {[%emt 0:04:45]} 25. Rhe3 {[%emt 0:01:55] White has more active pieces.} Rxe3 {[%emt 0:00:45]} 26. Rxe3 {[%emt 0:00:11]} Re8 {[%emt 0:00:31]} 27. Rxe8+ {[%emt 0:04:31]} Qxe8 $18 {[%emt 0:01:44][%mdl 4096] Endgame KQB-KQN} 28. Kg2 {[%emt 0:02:36]} ({White should try} 28. Bb4 $18) 28... b5 {[%emt 0:04:49] A mistake that costs the game.} (28... Qe4+ $16 29. Qxe4 fxe4) 29. Kf3 {[%emt 0:01:02]} Kf7 {[%emt 0:01:40]} 30. Bc3 {[%emt 0:02:52]} Nh5 $2 {[%emt 0:00:34]} (30... bxc4 31. Qxc4 Qe7) 31. cxb5 {[%emt 0:00:30]} axb5 {[%emt 0:00:02]} 32. Qe3 {[%emt 0:02:12]} Qd7 {[%emt 0:00:48]} 33. a3 {[%emt 0:01:07]} Kf8 {[%emt 0:00:22]} 34. Qd4 {[%emt 0:36:31] Weighted Error Value: White=0.23 (precise) /Black=0.48} 1-0

[Event "Romanian Superleague 2022"]
[Site "Oradea"]
[Date "2022.09.25"]
[Round "5.18"]
[White "Gulie, Cosmin"]
[Black "Ileana, George"]
[Result "0-1"]
[ECO "B50"]
[WhiteElo "1973"]
[BlackElo "2301"]
[Annotator "TA"]
[PlyCount "72"]
[EventDate "2022.09.21"]
[EventType "team-tourn"]
[EventCountry "ROU"]
[SourceTitle "playchess.com"]
[Source "ChessBase"]
[SourceQuality "1"]
[TimeControl "40/5400+30:1800+30"]

{[%evp 13,72,-3,0,-8,23,-11,8,0,0,14,8,-41,-39,-68,-64,-66,-60,-73,-75,-118,-118,-114,-102,-104,-100,-127,-81,-90,-93,-84,-89,-113,-104,-112,-111,-116,-116,-119,-113,-100,-90,-108,-84,-69,-65,-90,-106,-199,-191,-227,-134,-288,-275,-300,-290,-500,-487,-483,-481,-622,-609]} 1. e4 {[%emt 0:00:07]} c5 {[%emt 0:00:06]} 2. Nf3 {[%emt 0:00:21]} d6 {[%emt 0:00:11]} 3. c3 {[%emt 0:00:26]} Nf6 {[%emt 0:00:42]} 4. Be2 {[%emt 0:00:27]} e6 {[%emt 0:00:09]} 5. O-O {[%emt 0:00:37]} Be7 {[%emt 0:00:04]} 6. Re1 {[%emt 0:00:27]} Nc6 {[%emt 0:00:51]} 7. d3 {[%emt 0:00:35]} O-O {[%emt 0:00:20]} 8. h3 {[%emt 0:01:03] [#] B50: Sicilian: 2...d6, Miscellaneous.} b5 $146 {[%emt 0:00:27]} ({Predecessor:} 8... a6 9. Nbd2 b5 10. a3 Qc7 11. d4 e5 12. d5 Nb8 13. a4 b4 14. a5 Nbd7 {1-0 (24) Pikula,D (2337)-Amitpal,S (2102) Arandjelovac 2022}) 9. Be3 {[%emt 0:00:42]} Bb7 {[%emt 0:00:16]} 10. Nbd2 {[%emt 0:00:33] The position is equal.} Rc8 {[%emt 0:00:26]} 11. a3 {[%emt 0:01:02]} Qc7 {[%emt 0:00:20]} 12. Nf1 {[%emt 0:01:52]} (12. d4 $11 {should be considered.}) 12... d5 $15 {[%emt 0:00:16]} 13. exd5 {[%emt 0:01:09]} Nxd5 {[%emt 0:00:27]} 14. d4 {[%emt 0:01:55]} a6 {[%emt 0:00:39]} 15. Rc1 {[%emt 0:15:47]} Rfd8 {[%emt 0:01:12] Black is more active.} 16. Qc2 {[%emt 0:03:14]} cxd4 {[%emt 0:05:20]} 17. cxd4 {[%emt 0:07:31]} Qb6 {[%emt 0:00:45]} 18. Qb1 {[%emt 0:03:16]} h6 {[%emt 0:00:09]} 19. Red1 {[%emt 0:01:45]} Bf6 {[%emt 0:02:16]} ({Better is} 19... f5 20. g3 Bf6) 20. Bd3 $17 {[%emt 0:05:49]} Nxe3 {[%emt 0:02:03]} 21. fxe3 {[%emt 0:01:12]} e5 {[%emt 0:00:07][%cal Re5d4]} 22. Bf5 {[%emt 0:00:49]} Rb8 {[%emt 0:01:07][%cal Re5d4]} 23. dxe5 {[%emt 0:01:31]} Nxe5 {[%emt 0:00:10]} 24. Nxe5 {[%emt 0:02:17]} Bxe5 {[%emt 0:00:27]} 25. b4 {[%emt 0:03:21]} Rxd1 {[%emt 0:00:50]} 26. Rxd1 {[%emt 0:00:22]} Qc6 $40 {[%emt 0:00:12][%csl Gb7][%cal Rc6g2][%mdl 128] [#] White is in trouble.} 27. Qc2 {[%emt 0:01:29]} Qxc2 {[%emt 0:06:00]} 28. Bxc2 {[%emt 0:00:08]} Bb2 {[%emt 0:00:07]} 29. Rd3 {[%emt 0:07:34]} Rc8 {[%emt 0:01:10]} 30. Bd1 {[%emt 0:04:44]} (30. Bb3 $17 {was called for.}) 30... Be4 $19 {[%emt 0:03:39]} 31. Rb3 {[%emt 0:01:49]} Bc1 {[%emt 0:00:10] This bishop pair is nice.} (31... Be5 $19 {Strongly threatening ...Rd8.} 32. Nd2 Bg6) 32. Ng3 $2 {[%emt 0:09:32] [#] This move loses the game for White.} (32. Kf2 $17 {keeps fighting.}) 32... Bd5 $1 {[%emt 0:00:39]} 33. Rd3 {[%emt 0:00:27]} Bc4 {[%emt 0:00:13]} 34. Rd6 {[%emt 0:00:39]} (34. Rd7) 34... Bxe3+ {[%emt 0:04:30] Black is clearly winning.} 35. Kh2 {[%emt 0:00:10]} Bf4 {[%emt 0:00:04]} 36. Rxa6 {[%emt 0:00:29]} Bd5 {[%emt 0:00:04] Weighted Error Value: White=0.34/Black=0.09 (flawless)} 0-1

[Event "Romanian Superleague 2022"]
[Site "Oradea"]
[Date "2022.09.25"]
[Round "5.19"]
[White "Deac, Bogdan-Daniel"]
[Black "Marin, Mihail"]
[Result "0-1"]
[ECO "E73"]
[WhiteElo "2710"]
[BlackElo "2457"]
[Annotator "TA"]
[PlyCount "110"]
[EventDate "2022.09.21"]
[EventType "team-tourn"]
[EventCountry "ROU"]
[SourceTitle "playchess.com"]
[Source "ChessBase"]
[SourceQuality "1"]
[TimeControl "40/5400+30:1800+30"]

{[%evp 14,110,15,0,0,0,46,35,18,22,23,20,60,1,40,21,17,0,0,0,0,0,0,-16,27,8,12,0,46,54,52,58,60,40,68,0,31,-17,88,0,0,-6,23,8,19,17,16,27,14,-87,-91,-88,-73,-82,-87,-73,-78,-72,-84,-543,-531,-491,-246,-370,-246,-198,-236,-190,-190,-192,0,-185,0,-171,-228,-525,-269,-483,-486,-485,-472,-472,-440,-402,-410,-1245,-714,-714,-649,-29973,-733,-29979,-29980,-29980,-29981,-29972,-29974,-29973,-29971]} 1. d4 {[%emt 0:00:03]} g6 {[%emt 0:00:09]} 2. e4 {[%emt 0:00:06]} Bg7 {[%emt 0:00:05]} 3. c4 {[%emt 0:00:28]} d6 {[%emt 0:00:06]} 4. h4 {[%emt 0:01:52][%cal Bh2h4,Bh4h5,Bh5h6][%mdl 32]} Nf6 {[%emt 0:03:29]} 5. Nc3 {[%emt 0:00:24]} O-O {[%emt 0:00:41]} 6. Be2 {[%emt 0:00:13]} c5 {[%emt 0:01:40]} 7. d5 {[%emt 0:00:58]} e6 {[%emt 0:02:38]} 8. h5 {[%emt 0:00:29]} exd5 {[%emt 0:04:48] E73: King's Indian: Averbakh Variation without 6...c5.} 9. exd5 {[%emt 0:00:03]} Qe7 {[%emt 0:09:48] [#]} (9... Re8 $11 {might be stronger.}) 10. h6 $146 {[%emt 0:01:50]} ({Predecessor:} 10. hxg6 fxg6 11. Bg5 Nbd7 12. Nf3 Ne5 13. O-O Nf7 14. Re1 Bg4 15. Nd4 cxd4 16. Bxg4 Qxe1+ 17. Qxe1 Nxg4 {1-0 (35) Raahul,V (2344)-Nitin,S (2381) Arandjelovac 2021}) 10... Bh8 {[%emt 0:00:57] White is slightly better.} 11. Bg5 {[%emt 0:00:03]} a6 {[%emt 0:02:18]} 12. a4 {[%emt 0:17:37]} Qc7 {[%emt 0:01:56]} (12... Re8 {is interesting.} 13. Kf1 Nbd7 14. Rh4 Qf8) 13. Rh4 {[%emt 0:01:07]} (13. Kf1 $14) 13... Ne8 {[%emt 0:06:49]} 14. Qd2 {[%emt 0:01:56]} f6 $1 {[%emt 0:08:15]} 15. Be3 {[%emt 0:10:19]} f5 {[%emt 0:09:16]} 16. Nh3 {[%emt 0:05:39]} Nd7 {[%emt 0:00:10]} 17. Kf1 {[%emt 0:10:03]} Ne5 {[%emt 0:04:18]} 18. Re1 {[%emt 0:00:16]} Bf6 {[%emt 0:12:50]} 19. Ng5 {[%emt 0:01:10]} Nf7 {[%emt 0:00:55]} 20. f4 {[%emt 0:06:21]} b6 {[%emt 0:02:33]} (20... Bd7 $11 {should be considered.}) 21. Bf3 $1 {[%emt 0:11:23]} Nxg5 {[%emt 0:05:29]} 22. fxg5 {[%emt 0:00:03]} Be5 {[%emt 0:00:08]} 23. Ne2 {[%emt 0:01:23][%cal Bc3e2,Be2f4,Bf4d3,Bd3c5,Bc5e4][%mdl 32] Inhibits Bg3.} Qd8 {[%emt 0:04:55]} 24. Rh1 {[%emt 0:01:37]} (24. b4 $14) 24... Ra7 {[%emt 0:01:08]} 25. b4 {[%emt 0:02:36]} (25. g3 $14) 25... a5 {[%emt 0:02:21]} (25... f4 $11 26. Bf2 (26. Bxf4 $2 Bxf4 27. Nxf4 Qxg5 $17) (26. Nxf4 cxb4 27. Rd1 Re7 $15) 26... a5 27. bxc5 bxc5) 26. bxc5 {[%emt 0:00:33]} (26. b5 $1 $16) 26... bxc5 $11 {[%emt 0:00:06]} 27. Nf4 {[%emt 0:01:01]} Qxg5 {[%emt 0:01:39]} (27... Ba6 28. Ne6 Qb8 29. Nxf8 Kxf8 30. Be2 $16) 28. Nd3 {[%emt 0:06:25]} f4 $1 {[%emt 0:01:00] [#]} 29. Bxc5 {[%emt 0:00:12]} dxc5 {[%emt 0:00:39]} 30. Rxe5 {[%emt 0:03:19]} Qf6 {[%emt 0:00:07] [#]} 31. Re1 {[%emt 0:12:46]} (31. Qxf4 $1 $11 {remains equal.} Qxf4 (31... Qa6 32. Nxc5) 32. Nxf4) 31... Nd6 $17 {[%emt 0:01:42][%cal Be8d6,Bd6c4,Bc4e3][%mdl 32] aiming for ...Qd4.} 32. Qf2 {[%emt 0:00:08]} Rc7 {[%emt 0:04:47] White must now prevent ...Qc3.} 33. Nxc5 {[%emt 0:00:53]} Nxc4 {[%emt 0:00:11]} 34. Ne4 {[%emt 0:02:49]} Qe5 {[%emt 0:00:58]} 35. Kg1 {[%emt 0:00:58][%cal Od5d6]} Ne3 $1 {[%emt 0:01:51] Hoping for ...Rc4. Black is more active.} 36. Rxe3 $2 {[%emt 0:00:06][%mdl 8192]} (36. Qa2 $17 {was the crucial defense.}) 36... fxe3 $19 {[%emt 0:00:04]} 37. Qxe3 {[%emt 0:00:04] [#]} Bf5 {[%emt 0:00:40]} (37... Rxf3 $142 $1 {[%mdl 512]} 38. gxf3 Rc2 39. Nf6+ Qxf6 40. Qe8+ Qf8 41. Qxf8+ Kxf8) 38. Rh4 {[%emt 0:01:27]} (38. d6 {was the only chance.} Rd7 39. Qb3+ Kh8 40. Qb5 Qxb5 41. axb5) 38... Rfc8 {[%emt 0:01:59]} 39. d6 {[%emt 0:00:43]} Rc1+ {[%emt 0:00:48]} 40. Kf2 {[%emt 0:00:00]} R1c2+ {[%emt 0:00:00]} 41. Kg1 {[%emt 0:00:49]} Rc1+ {[%emt 0:14:43]} 42. Kf2 {[%emt 0:00:31]} R1c2+ {[%emt 0:01:27]} 43. Kg1 $1 {[%emt 0:01:59] [#]} Rb8 {[%emt 0:09:50]} (43... R2c5 $142 $1 {[%mdl 512]} 44. Kf2 (44. Rf4 Rc1+) 44... Rc2+) 44. Qe1 $2 {[%emt 0:01:38]} (44. Qf4 Qd4+ 45. Kh2) 44... g5 {[%emt 0:02:45]} 45. Rh5 {[%emt 0:00:27]} (45. d7 Qc7 46. Nf2 Bxd7 47. Re4) 45... Bxe4 {[%emt 0:02:10]} 46. Bxe4 {[%emt 0:00:38]} Qc5+ {[%emt 0:00:09]} ({Don't go for} 46... Rc5 $2 47. Rh3 Qd4+ 48. Kh1 Qxd6 49. Rd3 (49. Qa1 $2 Qc7 $19) 49... Qxh6+ 50. Rh3 $19) 47. Kh2 {[%emt 0:00:12] Qg3 is the strong threat.} Qxd6+ {[%emt 0:00:04]} 48. Kh1 {[%emt 0:00:15] [#]} Rc5 {[%emt 0:00:14]} 49. g3 {[%emt 0:02:30] Against Qf4} ({Don't play} 49. Qa1 Qe5 50. Qxe5 Rxe5 $19) (49. Rh3 $142) 49... Re5 {[%emt 0:02:32] ( -> ...Qd4)} 50. Qa1 {[%emt 0:02:47] Prevents Qd4.} Rd8 {[%emt 0:02:35]} 51. Bf3 {[%emt 0:02:40] [#]} Qf6 {[%emt 0:01:39]} (51... Qd3 $142 $1 52. Kg2 Qe3 53. Qa2+ Kf8 54. Rh2 Rf5 55. Qf2 Rd2 56. Qxd2 Qxd2+ 57. Kh3 Qe3 58. Bh5 Qe1 59. Be2 Rf6 60. Kg4 Qb1 61. Kh3 Qf5+ 62. Kg2 Qf2+ 63. Kh3 g4+ 64. Bxg4 Rxh6+ 65. Bh5 Rxh5+ 66. Kg4 Qf5#) 52. Qc3 {[%emt 0:01:42] [#]} Re1+ $3 {[%emt 0:01:07][%mdl 512] Black mates.} 53. Qxe1 {[%emt 0:00:07]} Qxf3+ {[%emt 0:00:04]} 54. Kg1 {[%emt 0:00:04]} Rd1 {[%emt 0:01:20]} 55. Rxg5+ {[%emt 0:00:04]} Kh8 {[%emt 0:00:04] Weighted Error Value: White=0.68/Black=0.64} 0-1

[Event "Romanian Superleague 2022"]
[Site "Oradea"]
[Date "2022.09.25"]
[Round "5.20"]
[White "Miron, Lucian-Costin"]
[Black "Miroshnichenko, Evgenij"]
[Result "1/2-1/2"]
[ECO "B04"]
[WhiteElo "2498"]
[BlackElo "2597"]
[Annotator "TA"]
[PlyCount "34"]
[EventDate "2022.09.21"]
[EventType "team-tourn"]
[EventCountry "ROU"]
[SourceTitle "playchess.com"]
[Source "ChessBase"]
[SourceQuality "1"]
[TimeControl "40/5400+30:1800+30"]

{[%evp 10,21,43,47,54,51,50,46,59,58,56,43,50,43]} 1. e4 {[%emt 0:00:07]} Nf6 {[%emt 0:00:09]} 2. e5 {[%emt 0:00:04]} Nd5 {[%emt 0:00:05]} 3. d4 {[%emt 0:00:11]} d6 {[%emt 0:00:03]} 4. Nf3 {[%emt 0:00:21]} dxe5 {[%emt 0:00:06]} 5. Nxe5 {[%emt 0:00:43]} c6 {[%emt 0:00:06]} 6. Be2 {[%emt 0:04:16] White is slightly better.} Bf5 {[%emt 0:00:20] B04: Alekhine's Defence: 4 Nf3.} 7. O-O {[%emt 0:00:35]} Nd7 {[%emt 0:00:11]} 8. Nf3 {[%emt 0:00:08]} e6 {[%emt 0:00:50]} 9. c4 {[%emt 0:01:11]} N5f6 {[%emt 0:00:18]} 10. Nh4 {[%emt 0:09:27]} Bxb1 {[%emt 0:08:49]} 11. Rxb1 {[%emt 0:00:29] [#] Black did not feel at home in the position after the opening.  Weighted Error Value: White=0.02 (flawless) /Black=0.02 (flawless)} {Predecessor:} Bd6 $146 12. g3 O-O 13. Qc2 Qc7 14. Rd1 Rad8 15. b4 a6 16. a4 Rfe8 17. Be3 e5 {½-½ (44) Saric,I (2669)-Movsesian,S (2608) Warsaw 2021} 1/2-1/2

[Event "Romanian Superleague 2022"]
[Site "Oradea"]
[Date "2022.09.25"]
[Round "5.21"]
[White "Szabo, Gergely-Andras-Gyula"]
[Black "Secheres, Adrian-Simion"]
[Result "1/2-1/2"]
[ECO "E62"]
[WhiteElo "2512"]
[BlackElo "2375"]
[Annotator "TA"]
[PlyCount "36"]
[EventDate "2022.09.21"]
[EventType "team-tourn"]
[EventCountry "ROU"]
[SourceTitle "playchess.com"]
[Source "ChessBase"]
[SourceQuality "1"]
[TimeControl "40/5400+30:1800+30"]

{[%evp 13,36,39,44,25,20,14,33,45,51,26,70,28,13,14,28,28,28,28,42,43,46,41,45,35,36]} 1. d4 {[%emt 0:00:04]} Nf6 {[%emt 0:00:19]} 2. c4 {[%emt 0:00:06]} g6 {[%emt 0:00:20]} 3. g3 {[%emt 0:00:13]} Bg7 {[%emt 0:00:23]} 4. Bg2 {[%emt 0:00:09]} O-O {[%emt 0:00:07]} 5. Nc3 {[%emt 0:00:04]} d6 {[%emt 0:00:43]} 6. Nf3 {[%emt 0:00:11]} c6 {[%emt 0:01:16]} 7. e4 {[%emt 0:02:32]} Bg4 {[%emt 0:09:39]} 8. Qb3 {[%emt 0:11:39] [#] E62: King's Indian: Fianchetto: 6...c6 and Panno Variation (6...Nc6) without ...a6.} Nfd7 $146 {[%emt 0:09:03]} ({Predecessor:} 8... Qb6 9. Be3 Nfd7 10. Qxb6 Nxb6 11. Nd2 Be6 12. Bf1 Na6 13. a3 Rfd8 14. O-O-O Nc7 15. Be2 d5 16. exd5 cxd5 {½-½ (64) Goldin,A (2555)-Benjamin,J (2585) New York 1993}) 9. Be3 $1 {[%emt 0:08:55]} ({Avoid the trap} 9. Qxb7 $2 Nb6 10. Bg5 f6 $19) 9... Bxf3 {[%emt 0:05:01]} 10. Bxf3 {[%emt 0:00:04]} Qb6 {[%emt 0:00:29]} 11. Rd1 {[%emt 0:18:11]} (11. O-O {is interesting.} Bxd4 12. Bxd4 Qxd4 13. Qxb7 Ne5 14. Be2) 11... Na6 {[%emt 0:04:10]} 12. O-O {[%emt 0:09:17]} Qxb3 {[%emt 0:02:54]} 13. axb3 {[%emt 0:00:06]} Nb4 {[%emt 0:00:06]} 14. Rd2 {[%emt 0:05:24] Inhibits Nc2.} c5 {[%emt 0:07:08]} 15. d5 {[%emt 0:02:07]} a6 {[%emt 0:17:03]} 16. Bg4 {[%emt 0:04:02] White is slightly better.} Rad8 {[%emt 0:08:40]} 17. f4 {[%emt 0:02:48][%cal Oe4e5]} b6 {[%emt 0:03:51]} 18. Be2 {[%emt 0:06:26]} Rb8 {[%emt 0:02:37] Weighted Error Value: White=0.09 (flawless) /Black=0.09 (flawless)} 1/2-1/2